[Event "CZE-ch U12 Open 2023"]
[Site "Teplice"]
[Date "2023.03.15"]
[Round "6.10"]
[White "Kupka, Alexandr"]
[Black "Sudrich, Radek"]
[Result "1/2-1/2"]
[ECO "B22"]
[WhiteElo "1220"]
[BlackElo "2054"]
[Annotator "TA"]
[PlyCount "49"]
[EventDate "2023.03.09"]
[EventType "swiss"]
[EventCountry "CZE"]
[SourceTitle "playchess.com"]
[Source "ChessBase"]
[SourceQuality "1"]
[TimeControl "40/5400+30:1800+30"]

{[%evp 9,49,38,75,50,58,42,52,0,62,-1,58,0,0,-52,-54,-58,-47,-195,-44,-76,-75,-77,-70,-82,-79,-141,-17,-16,77,62,137,144,154,160,167,58,55,0,63,0,151,0]} 1. e4 {[%emt 0:00:03]} c5 {[%emt 0:01:04]} 2. c3 {[%emt 0:00:10]} e6 {[%emt 0:00:45]} 3. d4 {[%emt 0:00:10]} cxd4 {[%emt 0:01:18]} 4. cxd4 {[%emt 0:00:56]} Nf6 {[%emt 0:06:28]} 5. Bd3 {[%emt 0:03:14]} d6 {[%emt 0:07:13]} 6. Be3 {[%emt 0:05:58] B22: Sicilian: 2 c3.} Nc6 {[%emt 0:03:21]} 7. Nd2 {[%emt 0:05:21]} Be7 {[%emt 0:04:30] [#]} 8. Ne2 $146 {[%emt 0:01:40]} (8. h3 $14) ({Predecessor:} 8. Rc1 O-O 9. Ne2 Ng4 10. Nf3 Nxe3 11. fxe3 e5 12. O-O Bf6 13. Bb1 g6 14. a3 {0-1 Garcia,E-De Avila,L COL m05 Colombia 1999 (2)}) 8... O-O {[%emt 0:04:52]} (8... Ng4 $11) 9. O-O {[%emt 0:00:11]} (9. h3 $14) 9... Bd7 {[%emt 0:03:57]} (9... Ng4 $11) 10. Rc1 {[%emt 0:10:39]} (10. h3 $14) 10... Ng4 $11 {[%emt 0:02:40]} 11. Ng3 {[%emt 0:08:53]} (11. Nf3 $11) 11... Nxe3 {[%emt 0:02:51]} 12. fxe3 {[%emt 0:00:12]} e5 {[%emt 0:04:15]} 13. Nb3 {[%emt 0:04:09]} (13. Nf3 $15) 13... Qb6 $2 {[%emt 0:03:05]} (13... Bg5 $19 14. Qe1 exd4 15. Nxd4 Nxd4 16. exd4 Bxc1 17. Qxc1 Qb6) 14. Nf5 {[%emt 0:02:06]} Bxf5 {[%emt 0:01:07]} 15. Rxf5 {[%emt 0:05:23]} g6 {[%emt 0:03:07]} 16. Qg4 {[%emt 0:03:20]} Kh8 {[%emt 0:01:14]} 17. Rf3 {[%emt 0:01:26]} (17. Rf2 $142) 17... h5 {[%emt 0:00:33]} (17... exd4 $17 {aiming for ...Ne5.} 18. Rh3 Bf6) 18. Rh3 $1 {[%emt 0:02:45][%cal Oh3h5]} exd4 {[%emt 0:02:27] [#]} (18... h4 $11 {remains equal.}) 19. Rxh5+ $1 $16 {[%emt 0:12:26]} gxh5 {[%emt 0:08:00]} (19... Kg8 $14) (19... Kg7 20. Rb5) 20. Qxh5+ {[%emt 0:00:18]} Kg7 {[%emt 0:00:06] Strongly threatening ...Rh8.} 21. Qg4+ {[%emt 0:12:05][%mdl 1024] White has strong compensation.} Kh6 {[%emt 0:02:51] Threatens to win with ...Rg8.} (21... Kh8 $2 22. e5 Rg8 23. Qh5+ Kg7 24. Rf1 Nxe5 25. Nxd4 $18) 22. Qh3+ {[%emt 0:05:06]} Kg7 {[%emt 0:00:46] Hoping for ...Rh8.} 23. Qg4+ {[%emt 0:03:46]} Kh6 $1 {[%emt 0:00:42]} (23... Kh8 24. e5 Rg8 25. Qh5+ Kg7 26. e6 $18) 24. Qh3+ {[%emt 0:09:48]} ({White should try} 24. e5 $1 $14 Rg8 25. Qh3+ Kg7 26. Qh7+ Kf8 27. e6) 24... Kg7 {[%emt 0:00:18] [#]} 25. Qg4+ $2 {Weighted Error Value: White=0.36/Black=0.36} (25. Qg3+ $1 $16 Kh8 26. Qh3+ Kg7) 1/2-1/2

[Event "CZE-ch U12 Open 2023"]
[Site "Teplice"]
[Date "2023.03.15"]
[Round "6.11"]
[White "Maly, Jiri"]
[Black "Mazurek, Richard"]
[Result "1-0"]
[ECO "B07"]
[WhiteElo "1520"]
[BlackElo "1137"]
[Annotator "NA RC COMBH"]
[PlyCount "105"]
[EventDate "2023.03.09"]
[EventType "swiss"]
[EventCountry "CZE"]
[SourceTitle "playchess.com"]
[Source "ChessBase"]
[SourceQuality "1"]
[TimeControl "40/5400+30:1800+30"]

1. e4 {[%emt 0:00:14]} d6 {[%emt 0:00:24]} 2. d4 {[%emt 0:00:38]} Nf6 {[%emt 0:00:07]} 3. Nc3 {[%emt 0:00:49]} e5 {[%emt 0:01:01]} 4. dxe5 {[%emt 0:02:38]} dxe5 {[%emt 0:02:20]} 5. Qxd8+ {[%emt 0:00:54]} Kxd8 {[%emt 0:00:19]} 6. Nf3 {[%emt 0:00:45]} Nbd7 {[%emt 0:05:13]} 7. Ng5 {[%emt 0:05:38]} Rg8 {[%emt 0:06:10]} 8. Bc4 {[%emt 0:04:54]} Nb6 {[%emt 0:02:01]} 9. Bxf7 {[%emt 0:02:17]} Rh8 {[%emt 0:01:54]} 10. Bb3 {[%emt 0:00:56]} Ke7 {[%emt 0:00:30]} 11. Nf7 {[%emt 0:01:25]} Be6 {[%emt 0:00:36]} 12. Nxh8 {[%emt 0:01:44]} Bxb3 {[%emt 0:00:14]} 13. axb3 {[%emt 0:00:13]} Ke6 {[%emt 0:00:39]} 14. O-O {[%emt 0:03:41]} a6 {[%emt 0:00:23]} 15. Be3 {[%emt 0:00:55]} Bb4 {[%emt 0:01:45]} 16. f3 {[%emt 0:01:46]} Rxh8 {[%emt 0:00:15]} 17. Rad1 {[%emt 0:01:26]} Nbd7 {[%emt 0:00:45]} 18. Nd5 {[%emt 0:01:21]} Nxd5 {[%emt 0:00:16]} 19. Rxd5 {[%emt 0:00:23]} c6 {[%emt 0:00:24]} 20. Rd3 {[%emt 0:01:03]} Nc5 {[%emt 0:00:43]} 21. Bxc5 {[%emt 0:01:15]} Bxc5+ {[%emt 0:00:12]} 22. Kh1 {[%emt 0:00:32]} Re8 {[%emt 0:00:10]} 23. Rfd1 {[%emt 0:00:54]} Re7 {[%emt 0:00:09]} 24. c3 {[%emt 0:01:19]} a5 {[%emt 0:00:21]} 25. g3 {[%emt 0:00:50]} g5 {[%emt 0:00:36]} 26. Kg2 {[%emt 0:01:50]} h5 {[%emt 0:01:00]} 27. Rd8 {[%emt 0:01:11]} Rg7 {[%emt 0:01:10]} 28. Rh8 {[%emt 0:01:47]} h4 {[%emt 0:00:38]} 29. Rh6+ {[%emt 0:02:16]} Ke7 {[%emt 0:00:03]} 30. gxh4 {[%emt 0:00:20]} gxh4+ {[%emt 0:00:07]} 31. Kh3 {[%emt 0:05:31]} Bf2 {[%emt 0:00:07]} 32. Rf1 {[%emt 0:00:32]} Be3 {[%emt 0:01:01]} 33. Rxh4 {[%emt 0:01:20]} Bf4 {[%emt 0:00:00]} 34. Rd1 {[%emt 0:09:28]} Bg5 {[%emt 0:03:04]} 35. Rg4 {[%emt 0:09:36]} Rh7+ {[%emt 0:00:46]} 36. Kg2 {[%emt 0:00:43]} Bf4 {[%emt 0:00:08]} 37. h3 {[%emt 0:00:22]} Be3 {[%emt 0:01:12]} 38. Ra1 {[%emt 0:02:52]} Bb6 {[%emt 0:00:39]} 39. Kg3 {[%emt 0:01:22]} Kf6 {[%emt 0:00:59]} 40. h4 {[%emt 0:03:21]} Kf7 {[%emt 0:00:58]} 41. Rd1 {[%emt 0:30:33]} Ke7 {[%emt 0:30:15]} 42. Rh1 {[%emt 0:00:51]} Be3 {[%emt 0:00:12]} 43. h5 {[%emt 0:01:17]} Rh6 {[%emt 0:00:14]} 44. Rg7+ {[%emt 0:01:39]} Kf6 {[%emt 0:00:08]} 45. Rg6+ {[%emt 0:07:10]} Rxg6+ {[%emt 0:00:09]} 46. hxg6 {[%emt 0:00:09]} Kxg6 {[%emt 0:00:00]} 47. Rh8 {[%emt 0:00:45]} Bc1 {[%emt 0:00:33]} 48. c4 {[%emt 0:01:06]} Bxb2 {[%emt 0:00:32]} 49. Rb8 {[%emt 0:00:23]} Kf6 {[%emt 0:01:12]} 50. Rxb7 {[%emt 0:00:46]} Ke6 {[%emt 0:00:16]} 51. f4 {[%emt 0:02:17]} Kd6 {[%emt 0:00:33]} 52. f5 {[%emt 0:00:34]} Bc1 {[%emt 0:00:21]} 53. Kg4 {[%emt 0:02:06]} 1-0

[Event "CZE-ch U12 Open 2023"]
[Site "Teplice"]
[Date "2023.03.15"]
[Round "6.12"]
[White "Krisica, Lukas"]
[Black "Tejnor, Martin"]
[Result "0-1"]
[ECO "A45"]
[WhiteElo "1342"]
[BlackElo "1360"]
[Annotator "NA RC COMBH"]
[PlyCount "60"]
[EventDate "2023.03.09"]
[EventType "swiss"]
[EventCountry "CZE"]
[SourceTitle "playchess.com"]
[Source "ChessBase"]
[SourceQuality "1"]
[TimeControl "40/5400+30:1800+30"]

1. d4 {[%emt 0:00:37]} Nf6 {[%emt 0:00:06]} 2. e3 {[%emt 0:01:56]} g6 {[%emt 0:00:14]} 3. Bd3 {[%emt 0:00:48]} Bg7 {[%emt 0:00:05]} 4. f4 {[%emt 0:01:30]} O-O {[%emt 0:00:07]} 5. Nf3 {[%emt 0:01:22]} c5 {[%emt 0:00:08]} 6. c3 {[%emt 0:00:42]} d6 {[%emt 0:00:07]} 7. O-O {[%emt 0:00:55]} Nc6 {[%emt 0:00:31]} 8. e4 {[%emt 0:02:05]} Bg4 {[%emt 0:00:47]} 9. e5 {[%emt 0:01:14]} dxe5 {[%emt 0:01:51]} 10. dxe5 {[%emt 0:00:11]} Nd5 {[%emt 0:02:08]} 11. Be4 {[%emt 0:01:46]} e6 {[%emt 0:01:05]} 12. Bxd5 {[%emt 0:01:07]} exd5 {[%emt 0:00:24]} 13. Be3 {[%emt 0:00:15]} b6 {[%emt 0:01:03]} 14. Nbd2 {[%emt 0:01:20]} Re8 {[%emt 0:01:29]} 15. Qc2 {[%emt 0:01:47]} Rc8 {[%emt 0:09:20]} 16. Qd3 {[%emt 0:01:44]} Bf5 {[%emt 0:01:35]} 17. Qe2 {[%emt 0:01:21]} f6 {[%emt 0:00:11]} 18. exf6 {[%emt 0:00:23]} Bxf6 {[%emt 0:00:10]} 19. Qf2 {[%emt 0:00:37]} d4 {[%emt 0:00:53]} 20. cxd4 {[%emt 0:00:04]} cxd4 {[%emt 0:00:06]} 21. Bxd4 {[%emt 0:05:54]} Nxd4 {[%emt 0:00:16]} 22. Rad1 {[%emt 0:00:34]} Re2 {[%emt 0:00:59]} 23. Qg3 {[%emt 0:00:18]} Rc2 {[%emt 0:05:30]} 24. Kh1 {[%emt 0:02:18]} Nxf3 {[%emt 0:04:24]} 25. Nxf3 {[%emt 0:00:14]} Qe7 {[%emt 0:00:34]} 26. Rc1 {[%emt 0:02:41]} Qc7 {[%emt 0:10:56]} 27. Rcd1 {[%emt 0:00:54]} Qc6 {[%emt 0:01:14]} 28. h3 {[%emt 0:01:58]} Be4 {[%emt 0:02:04]} 29. Rg1 {[%emt 0:01:55]} Bxf3 {[%emt 0:00:46]} 30. gxf3 {[%emt 0:00:10]} Qxf3+ {[%emt 0:00:19]} 0-1